[Event "Titled Tuesday Blitz June 27 Early 2023"]
[White "Shubin, Kirill"]
[Black "Nakamura, Hikaru"]
[WhiteFideId "34119962"]
[BlackFideId "2016192"]
[WhiteElo "2895"]
[BlackElo "3254"]
[Result "1/2-1/2"]
[Round "4"]
[TimeControl "180+2"]
[Date "2023.06.27"]
[WhiteClock "0:00:09"]
[BlackClock "0:00:12"]
[Board "1"]

1. e4 {[%clk 0:03:00]}  c6 {[%clk 0:02:54]} 2. d4 {[%clk 0:03:00]}  d5 {[%clk 0:02:53]} 3. exd5 {[%clk 0:03:01]}  cxd5 {[%clk 0:02:53]} 4. Bd3 {[%clk 0:03:02]}  Nc6 {[%clk 0:02:52]} 5. c3 {[%clk 0:03:02]}  g6 {[%clk 0:02:33]} 6. Bf4 {[%clk 0:03:00]}  Bg7 {[%clk 0:02:33]} 7. Nd2 {[%clk 0:03:00]}  Nh6 {[%clk 0:02:16]} 8. Ngf3 {[%clk 0:02:58]}  O-O {[%clk 0:02:16]} 9. O-O {[%clk 0:02:58]}  Bf5 {[%clk 0:02:15]} 10. Bxh6 {[%clk 0:02:46]}  Bxh6 {[%clk 0:02:12]} 11. Bxf5 {[%clk 0:02:45]}  gxf5 {[%clk 0:02:13]} 12. Re1 {[%clk 0:02:45]}  e6 {[%clk 0:02:13]} 13. Nb3 {[%clk 0:02:42]}  Kh8 {[%clk 0:02:11]} 14. Nc5 {[%clk 0:02:41]}  Qc7 {[%clk 0:02:11]} 15. Nd3 {[%clk 0:02:37]}  Rg8 {[%clk 0:02:07]} 16. Kh1 {[%clk 0:02:28]}  Bf8 {[%clk 0:02:04]} 17. g3 {[%clk 0:02:16]}  Bd6 {[%clk 0:02:00]} 18. Qd2 {[%clk 0:02:04]}  Rg4 {[%clk 0:01:56]} 19. b4 {[%clk 0:01:56]}  Rag8 {[%clk 0:01:52]} 20. Rg1 {[%clk 0:01:39]}  f6 {[%clk 0:01:46]} 21. Rae1 {[%clk 0:01:28]}  Re4 {[%clk 0:01:46]} 22. Qh6 {[%clk 0:01:21]}  Qf7 {[%clk 0:01:42]} 23. Nc5 {[%clk 0:01:14]}  Bxc5 {[%clk 0:01:38]} 24. bxc5 {[%clk 0:01:15]}  Qg6 {[%clk 0:01:32]} 25. Qxg6 {[%clk 0:01:13]}  hxg6 {[%clk 0:01:33]} 26. Nd2 {[%clk 0:01:10]}  Rxe1 {[%clk 0:01:32]} 27. Rxe1 {[%clk 0:01:11]}  e5 {[%clk 0:01:33]} 28. Nb3 {[%clk 0:01:08]}  Kg7 {[%clk 0:01:22]} 29. Rd1 {[%clk 0:01:06]}  Rd8 {[%clk 0:01:22]} 30. Kg2 {[%clk 0:01:03]}  g5 {[%clk 0:01:13]} 31. h4 {[%clk 0:00:57]}  gxh4 {[%clk 0:01:10]} 32. gxh4 {[%clk 0:00:58]}  f4 {[%clk 0:01:11]} 33. Kf3 {[%clk 0:00:56]}  Kg6 {[%clk 0:01:11]} 34. Kg4 {[%clk 0:00:53]}  Kf7 {[%clk 0:01:04]} 35. h5 {[%clk 0:00:42]}  Rg8+ {[%clk 0:01:04]} 36. Kf3 {[%clk 0:00:36]}  Ke6 {[%clk 0:01:00]} 37. c4 {[%clk 0:00:29]}  Kf5 {[%clk 0:00:48]} 38. cxd5 {[%clk 0:00:28]}  e4+ {[%clk 0:00:49]} 39. Ke2 {[%clk 0:00:29]}  Nb4 {[%clk 0:00:50]} 40. d6 {[%clk 0:00:23]}  Nd5 {[%clk 0:00:50]} 41. Rh1 {[%clk 0:00:22]}  f3+ {[%clk 0:00:39]} 42. Kd2 {[%clk 0:00:20]}  Ke6 {[%clk 0:00:34]} 43. h6 {[%clk 0:00:20]}  Rh8 {[%clk 0:00:19]} 44. h7 {[%clk 0:00:18]}  f5 {[%clk 0:00:15]} 45. Na5 {[%clk 0:00:17]}  f4 {[%clk 0:00:14]} 46. Nc4 {[%clk 0:00:13]}  Nf6 {[%clk 0:00:13]} 47. Rh6 {[%clk 0:00:07]}  Rxh7 {[%clk 0:00:11]} 48. Rg6 {[%clk 0:00:04]}  Kd5 {[%clk 0:00:04]} 49. Rxf6 {[%clk 0:00:03]}  Kxc4 {[%clk 0:00:05]} 50. Rxf4 {[%clk 0:00:02]}  Kxd4 {[%clk 0:00:06]} 51. Rg4 {[%clk 0:00:02]}  Kxc5 {[%clk 0:00:03]} 52. Rxe4 {[%clk 0:00:02]}  Kxd6 {[%clk 0:00:04]} 53. Ke3 {[%clk 0:00:03]}  Rf7 {[%clk 0:00:03]} 54. Rf4 {[%clk 0:00:03]}  Rc7 {[%clk 0:00:03]} 55. Kxf3 {[%clk 0:00:03]}  Rc3+ {[%clk 0:00:03]} 56. Kg2 {[%clk 0:00:03]}  Ra3 {[%clk 0:00:04]} 57. Rb4 {[%clk 0:00:03]}  b6 {[%clk 0:00:04]} 58. Rb2 {[%clk 0:00:04]}  Kc5 {[%clk 0:00:05]} 59. f4 {[%clk 0:00:04]}  Kd4 {[%clk 0:00:06]} 60. Rf2 {[%clk 0:00:05]}  Ke4 {[%clk 0:00:04]} 61. f5 {[%clk 0:00:05]}  Rd3 {[%clk 0:00:04]} 62. f6 {[%clk 0:00:05]}  Rd8 {[%clk 0:00:05]} 63. f7 {[%clk 0:00:06]}  Rf8 {[%clk 0:00:05]} 64. Kf1 {[%clk 0:00:06]}  Ke5 {[%clk 0:00:06]} 65. Ke2 {[%clk 0:00:07]}  Ke6 {[%clk 0:00:06]} 66. Kd3 {[%clk 0:00:06]}  Rxf7 {[%clk 0:00:07]} 67. Rxf7 {[%clk 0:00:06]}  Kxf7 {[%clk 0:00:08]} 68. Kc4 {[%clk 0:00:07]}  Ke6 {[%clk 0:00:09]} 69. Kb5 {[%clk 0:00:08]}  Kd5 {[%clk 0:00:09]} 70. Ka6 {[%clk 0:00:07]}  Kc5 {[%clk 0:00:10]} 71. Kxa7 {[%clk 0:00:07]}  b5 {[%clk 0:00:11]} 72. Ka6 {[%clk 0:00:08]}  b4 {[%clk 0:00:11]} 73. Ka5 {[%clk 0:00:08]}  Kc4 {[%clk 0:00:12]} 74. Ka4 {[%clk 0:00:08]}  Kc3 {[%clk 0:00:11]} 75. Kb5 {[%clk 0:00:09]}  b3 {[%clk 0:00:11]} 76. axb3 {[%clk 0:00:09]}  Kxb3 {[%clk 0:00:12]} 1/2-1/2


[Site "https://www.chess.com"]

[Event "Titled Tuesday Blitz June 27 Early 2023"]
[White "Mamedov, Rauf"]
[Black "Ibarra Jerez, Jose Carlos"]
[WhiteFideId "13401653"]
[BlackFideId "2226332"]
[WhiteElo "3082"]
[BlackElo "2879"]
[Result "0-1"]
[Round "4"]
[TimeControl "180+2"]
[Date "2023.06.27"]
[WhiteClock "0:00:08"]
[BlackClock "0:00:07"]
[Board "3"]

1. e4 {[%clk 0:03:00]}  c5 {[%clk 0:02:59]} 2. c3 {[%clk 0:03:00]}  Nf6 {[%clk 0:02:59]} 3. e5 {[%clk 0:03:00]}  Nd5 {[%clk 0:03:00]} 4. Bc4 {[%clk 0:03:01]}  Nb6 {[%clk 0:02:57]} 5. Bb3 {[%clk 0:03:01]}  Nc6 {[%clk 0:02:58]} 6. d4 {[%clk 0:02:57]}  cxd4 {[%clk 0:02:58]} 7. cxd4 {[%clk 0:02:57]}  g6 {[%clk 0:02:59]} 8. Nf3 {[%clk 0:02:55]}  Bg7 {[%clk 0:02:58]} 9. h4 {[%clk 0:02:54]}  d6 {[%clk 0:02:57]} 10. e6 {[%clk 0:02:53]}  Bxe6 {[%clk 0:02:52]} 11. d5 {[%clk 0:02:51]}  Nxd5 {[%clk 0:02:52]} 12. h5 {[%clk 0:02:36]}  Nc7 {[%clk 0:02:48]} 13. Bc2 {[%clk 0:02:34]}  Nb4 {[%clk 0:02:44]} 14. Bb3 {[%clk 0:02:29]}  Qd7 {[%clk 0:02:39]} 15. O-O {[%clk 0:02:23]}  O-O {[%clk 0:02:34]} 16. Nc3 {[%clk 0:02:20]}  Rac8 {[%clk 0:02:19]} 17. Re1 {[%clk 0:02:14]}  Bxb3 {[%clk 0:02:17]} 18. axb3 {[%clk 0:02:15]}  a6 {[%clk 0:02:11]} 19. Ra4 {[%clk 0:02:14]}  Nc6 {[%clk 0:01:59]} 20. Rh4 {[%clk 0:02:15]}  Qf5 {[%clk 0:01:34]} 21. Ng5 {[%clk 0:01:59]}  h6 {[%clk 0:01:25]} 22. Nge4 {[%clk 0:01:52]}  g5 {[%clk 0:01:23]} 23. Rh3 {[%clk 0:01:53]}  Nd4 {[%clk 0:01:13]} 24. Be3 {[%clk 0:01:41]}  Nce6 {[%clk 0:01:12]} 25. Qb1 {[%clk 0:01:29]}  d5 {[%clk 0:00:55]} 26. Nd2 {[%clk 0:00:49]}  Qxb1 {[%clk 0:00:55]} 27. Rxb1 {[%clk 0:00:50]}  Rfd8 {[%clk 0:00:52]} 28. g4 {[%clk 0:00:48]}  Rxc3 {[%clk 0:00:40]} 29. bxc3 {[%clk 0:00:47]}  Ne2+ {[%clk 0:00:40]} 30. Kf1 {[%clk 0:00:42]}  Nxc3 {[%clk 0:00:41]} 31. Re1 {[%clk 0:00:36]}  d4 {[%clk 0:00:41]} 32. Bxd4 {[%clk 0:00:34]}  Bxd4 {[%clk 0:00:37]} 33. Rd3 {[%clk 0:00:34]}  Nf4 {[%clk 0:00:35]} 34. Rf3 {[%clk 0:00:33]}  e6 {[%clk 0:00:34]} 35. Nc4 {[%clk 0:00:32]}  b5 {[%clk 0:00:31]} 36. Na5 {[%clk 0:00:32]}  Rd6 {[%clk 0:00:31]} 37. Nb7 {[%clk 0:00:32]}  Rd5 {[%clk 0:00:29]} 38. Na5 {[%clk 0:00:29]}  Bf6 {[%clk 0:00:25]} 39. b4 {[%clk 0:00:26]}  Rd2 {[%clk 0:00:24]} 40. Nb3 {[%clk 0:00:25]}  Rb2 {[%clk 0:00:24]} 41. Nc5 {[%clk 0:00:25]}  Bd4 {[%clk 0:00:20]} 42. Nxa6 {[%clk 0:00:22]}  Bxf2 {[%clk 0:00:20]} 43. Rxc3 {[%clk 0:00:14]}  Bxe1 {[%clk 0:00:19]} 44. Rc8+ {[%clk 0:00:15]}  Kg7 {[%clk 0:00:20]} 45. Kxe1 {[%clk 0:00:16]}  Nd5 {[%clk 0:00:20]} 46. Nc5 {[%clk 0:00:13]}  Rxb4 {[%clk 0:00:18]} 47. Rb8 {[%clk 0:00:11]}  Rxg4 {[%clk 0:00:17]} 48. Rb7 {[%clk 0:00:11]}  Kf6 {[%clk 0:00:15]} 49. Kf2 {[%clk 0:00:12]}  Rh4 {[%clk 0:00:15]} 50. Kg3 {[%clk 0:00:12]}  Nf4 {[%clk 0:00:14]} 51. Ne4+ {[%clk 0:00:12]}  Ke5 {[%clk 0:00:12]} 52. Nf2 {[%clk 0:00:12]}  Nxh5+ {[%clk 0:00:12]} 53. Kg2 {[%clk 0:00:13]}  Nf4+ {[%clk 0:00:12]} 54. Kf3 {[%clk 0:00:13]}  Nd5 {[%clk 0:00:12]} 55. Nd3+ {[%clk 0:00:11]}  Kf6 {[%clk 0:00:12]} 56. Nf2 {[%clk 0:00:11]}  Rf4+ {[%clk 0:00:12]} 57. Kg3 {[%clk 0:00:12]}  b4 {[%clk 0:00:12]} 58. Ng4+ {[%clk 0:00:12]}  Kg7 {[%clk 0:00:12]} 59. Ne5 {[%clk 0:00:11]}  h5 {[%clk 0:00:11]} 60. Nc6 {[%clk 0:00:10]}  h4+ {[%clk 0:00:11]} 61. Kh3 {[%clk 0:00:11]}  Rf3+ {[%clk 0:00:11]} 62. Kg2 {[%clk 0:00:09]}  Rg3+ {[%clk 0:00:11]} 63. Kh2 {[%clk 0:00:10]}  Rc3 {[%clk 0:00:10]} 64. Nd8 {[%clk 0:00:10]}  Kg6 {[%clk 0:00:08]} 65. Nxf7 {[%clk 0:00:10]}  b3 {[%clk 0:00:08]} 66. Ne5+ {[%clk 0:00:10]}  Kf5 {[%clk 0:00:08]} 67. Nf7 {[%clk 0:00:09]}  Rc2+ {[%clk 0:00:08]} 68. Kh3 {[%clk 0:00:08]}  Nf4# {[%clk 0:00:07]} 0-1


[Site "https://www.chess.com"]

[Event "Titled Tuesday Blitz June 27 Early 2023"]
[White "Terry, Renato"]
[Black "Kravtsiv, Martyn"]
[WhiteFideId "3803457"]
[BlackFideId "14113147"]
[WhiteElo "3007"]
[BlackElo "2829"]
[Result "0-1"]
[Round "4"]
[TimeControl "180+2"]
[Date "2023.06.27"]
[WhiteClock "0:00:30"]
[BlackClock "0:00:54"]
[Board "8"]

1. Nf3 {[%clk 0:03:00]}  d5 {[%clk 0:02:59]} 2. e3 {[%clk 0:03:00]}  Nf6 {[%clk 0:02:59]} 3. b4 {[%clk 0:02:59]}  e6 {[%clk 0:02:58]} 4. a3 {[%clk 0:02:58]}  c5 {[%clk 0:02:57]} 5. bxc5 {[%clk 0:02:57]}  Bxc5 {[%clk 0:02:56]} 6. Bb2 {[%clk 0:02:57]}  O-O {[%clk 0:02:54]} 7. c4 {[%clk 0:02:56]}  b6 {[%clk 0:02:41]} 8. Qc2 {[%clk 0:02:54]}  Bb7 {[%clk 0:02:39]} 9. cxd5 {[%clk 0:02:33]}  Nxd5 {[%clk 0:02:37]} 10. Bd3 {[%clk 0:02:28]}  h6 {[%clk 0:02:30]} 11. O-O {[%clk 0:02:26]}  Nd7 {[%clk 0:02:29]} 12. Nc3 {[%clk 0:02:21]}  Rc8 {[%clk 0:02:29]} 13. Qa4 {[%clk 0:02:06]}  Nxc3 {[%clk 0:02:18]} 14. Bxc3 {[%clk 0:02:06]}  Be7 {[%clk 0:01:56]} 15. Be2 {[%clk 0:01:56]}  Nc5 {[%clk 0:01:55]} 16. Qg4 {[%clk 0:01:52]}  Bf6 {[%clk 0:01:55]} 17. Bxf6 {[%clk 0:01:37]}  Qxf6 {[%clk 0:01:54]} 18. d4 {[%clk 0:01:37]}  Nb3 {[%clk 0:01:31]} 19. Ra2 {[%clk 0:01:37]}  Nc1 {[%clk 0:01:29]} 20. Rd2 {[%clk 0:01:28]}  Nxe2+ {[%clk 0:01:29]} 21. Rxe2 {[%clk 0:01:29]}  Ba6 {[%clk 0:01:29]} 22. Ne5 {[%clk 0:01:29]}  Rc7 {[%clk 0:01:27]} 23. Ree1 {[%clk 0:01:00]}  Rfc8 {[%clk 0:01:23]} 24. Qe4 {[%clk 0:00:54]}  Bxf1 {[%clk 0:01:20]} 25. Rxf1 {[%clk 0:00:55]}  Rc1 {[%clk 0:01:19]} 26. g3 {[%clk 0:00:54]}  Qf5 {[%clk 0:01:19]} 27. Qb7 {[%clk 0:00:51]}  Qh3 {[%clk 0:00:54]} 28. Qxf7+ {[%clk 0:00:44]}  Kh8 {[%clk 0:00:54]} 29. Ng6+ {[%clk 0:00:30]}  Kh7 {[%clk 0:00:54]} 0-1


[Site "https://www.chess.com"]

[Event "Titled Tuesday Blitz June 27 Early 2023"]
[White "Horvath, Dominik"]
[Black "Martinez Alcantara, Jose Eduardo"]
[WhiteFideId "1642561"]
[BlackFideId "3805662"]
[WhiteElo "2820"]
[BlackElo "3001"]
[Result "1-0"]
[Round "4"]
[TimeControl "180+2"]
[Date "2023.06.27"]
[WhiteClock "0:00:16"]
[BlackClock "0:00:05"]
[Board "9"]

1. e4 {[%clk 0:03:00]}  c5 {[%clk 0:02:58]} 2. Nf3 {[%clk 0:03:00]}  d6 {[%clk 0:02:58]} 3. d4 {[%clk 0:03:01]}  cxd4 {[%clk 0:02:59]} 4. Nxd4 {[%clk 0:03:01]}  a6 {[%clk 0:02:59]} 5. Nc3 {[%clk 0:02:59]}  e6 {[%clk 0:02:59]} 6. g4 {[%clk 0:02:57]}  h6 {[%clk 0:02:59]} 7. Rg1 {[%clk 0:02:57]}  b5 {[%clk 0:02:59]} 8. a3 {[%clk 0:02:57]}  Bb7 {[%clk 0:02:59]} 9. Be3 {[%clk 0:02:56]}  Nd7 {[%clk 0:02:59]} 10. Qd2 {[%clk 0:02:55]}  Rc8 {[%clk 0:02:59]} 11. O-O-O {[%clk 0:02:40]}  Be7 {[%clk 0:02:59]} 12. Nb3 {[%clk 0:02:32]}  Ngf6 {[%clk 0:02:56]} 13. f3 {[%clk 0:02:32]}  Ne5 {[%clk 0:02:47]} 14. Be2 {[%clk 0:02:27]}  Nfd7 {[%clk 0:02:47]} 15. h4 {[%clk 0:02:00]}  g5 {[%clk 0:02:25]} 16. hxg5 {[%clk 0:01:57]}  hxg5 {[%clk 0:02:26]} 17. Rh1 {[%clk 0:01:57]}  Rg8 {[%clk 0:02:27]} 18. Kb1 {[%clk 0:01:52]}  Nb6 {[%clk 0:02:13]} 19. Na5 {[%clk 0:01:50]}  Ba8 {[%clk 0:02:13]} 20. Rh7 {[%clk 0:01:48]}  Nbd7 {[%clk 0:02:10]} 21. Nb3 {[%clk 0:01:45]}  Nb6 {[%clk 0:01:37]} 22. Na5 {[%clk 0:01:35]}  Qc7 {[%clk 0:01:37]} 23. Rdh1 {[%clk 0:01:29]}  Bf6 {[%clk 0:01:18]} 24. Ka1 {[%clk 0:00:54]}  Nbd7 {[%clk 0:01:16]} 25. Nb3 {[%clk 0:00:50]}  Be7 {[%clk 0:01:08]} 26. Rh8 {[%clk 0:00:48]}  Rf8 {[%clk 0:00:55]} 27. Bxg5 {[%clk 0:00:48]}  Ng6 {[%clk 0:00:51]} 28. Rxf8+ {[%clk 0:00:42]}  Bxf8 {[%clk 0:00:51]} 29. Kb1 {[%clk 0:00:40]}  Bg7 {[%clk 0:00:46]} 30. Nd4 {[%clk 0:00:38]}  Qb8 {[%clk 0:00:35]} 31. Be3 {[%clk 0:00:36]}  Nc5 {[%clk 0:00:26]} 32. Rh7 {[%clk 0:00:34]}  Bf6 {[%clk 0:00:22]} 33. g5 {[%clk 0:00:35]}  Be7 {[%clk 0:00:20]} 34. f4 {[%clk 0:00:30]}  Nxe4 {[%clk 0:00:20]} 35. Nxe4 {[%clk 0:00:28]}  Bxe4 {[%clk 0:00:21]} 36. f5 {[%clk 0:00:27]}  exf5 {[%clk 0:00:19]} 37. Bd3 {[%clk 0:00:25]}  Qb7 {[%clk 0:00:20]} 38. Nxf5 {[%clk 0:00:22]}  Rd8 {[%clk 0:00:15]} 39. Bxe4 {[%clk 0:00:18]}  Qxe4 {[%clk 0:00:16]} 40. Qf2 {[%clk 0:00:19]}  Ne5 {[%clk 0:00:12]} 41. Bb6 {[%clk 0:00:17]}  Rc8 {[%clk 0:00:08]} 42. Rh8+ {[%clk 0:00:17]}  Kd7 {[%clk 0:00:09]} 43. Rxc8 {[%clk 0:00:17]}  Kxc8 {[%clk 0:00:09]} 44. Nxe7+ {[%clk 0:00:18]}  Kb7 {[%clk 0:00:10]} 45. Nf5 {[%clk 0:00:18]}  Nf3 {[%clk 0:00:05]} 46. Nxd6+ {[%clk 0:00:16]} 1-0


[Site "https://www.chess.com"]

[Event "Titled Tuesday Blitz June 27 Early 2023"]
[White "Elsa167"]
[Black "Paravyan, David"]
[BlackFideId "4194985"]
[WhiteElo "2819"]
[BlackElo "2999"]
[Result "0-1"]
[Round "4"]
[TimeControl "180+2"]
[Date "2023.06.27"]
[WhiteClock "0:00:12"]
[BlackClock "0:00:22"]
[Board "10"]

1. d4 {[%clk 0:03:00]}  Nf6 {[%clk 0:02:59]} 2. c4 {[%clk 0:03:00]}  g6 {[%clk 0:03:00]} 3. Nc3 {[%clk 0:02:59]}  d5 {[%clk 0:03:00]} 4. Nf3 {[%clk 0:02:57]}  Bg7 {[%clk 0:02:58]} 5. e3 {[%clk 0:02:57]}  O-O {[%clk 0:02:57]} 6. cxd5 {[%clk 0:02:58]}  Nxd5 {[%clk 0:02:58]} 7. Bc4 {[%clk 0:02:59]}  Nxc3 {[%clk 0:02:59]} 8. bxc3 {[%clk 0:03:00]}  c5 {[%clk 0:03:00]} 9. O-O {[%clk 0:03:00]}  Qc7 {[%clk 0:03:00]} 10. Bb3 {[%clk 0:02:59]}  b6 {[%clk 0:02:56]} 11. e4 {[%clk 0:02:54]}  Nc6 {[%clk 0:02:51]} 12. h3 {[%clk 0:02:49]}  Ba6 {[%clk 0:02:46]} 13. Re1 {[%clk 0:02:49]}  Na5 {[%clk 0:02:23]} 14. Be3 {[%clk 0:02:39]}  e6 {[%clk 0:02:12]} 15. Qd2 {[%clk 0:02:27]}  Qb7 {[%clk 0:02:10]} 16. Bh6 {[%clk 0:02:24]}  cxd4 {[%clk 0:02:02]} 17. cxd4 {[%clk 0:02:24]}  Rac8 {[%clk 0:02:00]} 18. Bxg7 {[%clk 0:02:11]}  Kxg7 {[%clk 0:02:01]} 19. d5 {[%clk 0:02:12]}  Bc4 {[%clk 0:01:44]} 20. Qd4+ {[%clk 0:01:40]}  Kg8 {[%clk 0:01:43]} 21. dxe6 {[%clk 0:01:39]}  Bxb3 {[%clk 0:01:41]} 22. axb3 {[%clk 0:01:19]}  Nxb3 {[%clk 0:01:41]} 23. exf7+ {[%clk 0:01:18]}  Qxf7 {[%clk 0:01:38]} 24. Qb2 {[%clk 0:01:18]}  Nxa1 {[%clk 0:01:37]} 25. Rxa1 {[%clk 0:01:19]}  Rc7 {[%clk 0:01:31]} 26. Ne5 {[%clk 0:01:19]}  Qe6 {[%clk 0:01:30]} 27. Rd1 {[%clk 0:01:13]}  a5 {[%clk 0:01:00]} 28. Rd5 {[%clk 0:01:13]}  a4 {[%clk 0:00:59]} 29. Qd4 {[%clk 0:01:02]}  Qf6 {[%clk 0:00:36]} 30. Qd2 {[%clk 0:00:25]}  a3 {[%clk 0:00:26]} 31. Nd7 {[%clk 0:00:22]}  Qxf2+ {[%clk 0:00:21]} 32. Qxf2 {[%clk 0:00:18]}  Rc1+ {[%clk 0:00:21]} 33. Kh2 {[%clk 0:00:18]}  Rxf2 {[%clk 0:00:21]} 34. Ne5 {[%clk 0:00:14]}  a2 {[%clk 0:00:21]} 35. Rd8+ {[%clk 0:00:14]}  Rf8 {[%clk 0:00:21]} 36. Rd7 {[%clk 0:00:14]}  a1=Q {[%clk 0:00:21]} 37. Ng4 {[%clk 0:00:15]}  Rh1+ {[%clk 0:00:21]} 38. Kg3 {[%clk 0:00:12]}  Qe1+ {[%clk 0:00:22]} 0-1


[Site "https://www.chess.com"]

[Event "Titled Tuesday Blitz June 27 Early 2023"]
[White "Narayanan.S.L"]
[Black "Bazeev, German"]
[WhiteFideId "5058422"]
[BlackFideId "24119350"]
[WhiteElo "2995"]
[BlackElo "2819"]
[Result "1-0"]
[Round "4"]
[TimeControl "180+2"]
[Date "2023.06.27"]
[WhiteClock "0:02:09"]
[BlackClock "0:01:13"]
[Board "11"]

1. Nf3 {[%clk 0:02:59]}  Nf6 {[%clk 0:03:00]} 2. g3 {[%clk 0:02:58]}  d5 {[%clk 0:03:00]} 3. Bg2 {[%clk 0:02:59]}  c6 {[%clk 0:03:01]} 4. O-O {[%clk 0:02:59]}  Bg4 {[%clk 0:03:02]} 5. h3 {[%clk 0:02:59]}  Bxf3 {[%clk 0:03:01]} 6. Bxf3 {[%clk 0:02:59]}  h5 {[%clk 0:03:02]} 7. d3 {[%clk 0:02:51]}  h4 {[%clk 0:03:00]} 8. g4 {[%clk 0:02:52]}  Nbd7 {[%clk 0:03:01]} 9. Nd2 {[%clk 0:02:51]}  e6 {[%clk 0:03:00]} 10. e3 {[%clk 0:02:51]}  Bd6 {[%clk 0:02:56]} 11. Bg2 {[%clk 0:02:51]}  a5 {[%clk 0:02:45]} 12. a4 {[%clk 0:02:50]}  Qe7 {[%clk 0:02:41]} 13. f4 {[%clk 0:02:49]}  e5 {[%clk 0:02:35]} 14. Nf3 {[%clk 0:02:21]}  e4 {[%clk 0:02:33]} 15. Nd4 {[%clk 0:02:20]}  g6 {[%clk 0:02:34]} 16. c4 {[%clk 0:02:17]}  dxc4 {[%clk 0:02:31]} 17. g5 {[%clk 0:02:17]}  Nh5 {[%clk 0:02:19]} 18. dxe4 {[%clk 0:02:16]}  O-O-O {[%clk 0:02:12]} 19. Bd2 {[%clk 0:02:14]}  Ng3 {[%clk 0:02:11]} 20. Bxa5 {[%clk 0:02:13]}  Nxe4 {[%clk 0:01:32]} 21. Bxd8 {[%clk 0:02:12]}  Rxd8 {[%clk 0:01:33]} 22. a5 {[%clk 0:02:10]}  Ndc5 {[%clk 0:01:13]} 23. a6 {[%clk 0:02:09]} 1-0


[Site "https://www.chess.com"]

[Event "Titled Tuesday Blitz June 27 Early 2023"]
[White "Srihari L R"]
[Black "Hakobyan, Aram"]
[WhiteFideId "46617116"]
[BlackFideId "13306677"]
[WhiteElo "2812"]
[BlackElo "2993"]
[Result "0-1"]
[Round "4"]
[TimeControl "180+2"]
[Date "2023.06.27"]
[WhiteClock "0:00:08"]
[BlackClock "0:00:15"]
[Board "12"]

1. d4 {[%clk 0:03:00]}  Nf6 {[%clk 0:03:00]} 2. Bg5 {[%clk 0:02:58]}  d5 {[%clk 0:02:59]} 3. Nd2 {[%clk 0:02:58]}  Bf5 {[%clk 0:02:54]} 4. e3 {[%clk 0:02:56]}  e6 {[%clk 0:02:53]} 5. Bd3 {[%clk 0:02:56]}  Bg6 {[%clk 0:02:53]} 6. Ngf3 {[%clk 0:02:56]}  Be7 {[%clk 0:02:53]} 7. O-O {[%clk 0:02:55]}  Nbd7 {[%clk 0:02:53]} 8. Qe2 {[%clk 0:02:54]}  O-O {[%clk 0:02:47]} 9. Bxf6 {[%clk 0:02:44]}  Nxf6 {[%clk 0:02:46]} 10. Bxg6 {[%clk 0:02:41]}  hxg6 {[%clk 0:02:45]} 11. e4 {[%clk 0:02:41]}  c5 {[%clk 0:02:41]} 12. e5 {[%clk 0:02:32]}  Nd7 {[%clk 0:02:39]} 13. c3 {[%clk 0:02:31]}  Qb6 {[%clk 0:02:39]} 14. Rab1 {[%clk 0:02:30]}  Qa6 {[%clk 0:02:39]} 15. Qxa6 {[%clk 0:02:27]}  bxa6 {[%clk 0:02:39]} 16. a3 {[%clk 0:02:27]}  a5 {[%clk 0:02:34]} 17. g3 {[%clk 0:02:21]}  Rab8 {[%clk 0:02:30]} 18. Rfc1 {[%clk 0:02:20]}  c4 {[%clk 0:02:26]} 19. Rc2 {[%clk 0:02:19]}  a4 {[%clk 0:02:26]} 20. Re1 {[%clk 0:02:14]}  Rb7 {[%clk 0:02:22]} 21. Re2 {[%clk 0:02:15]}  Rfb8 {[%clk 0:02:21]} 22. Nf1 {[%clk 0:02:14]}  Rb3 {[%clk 0:01:55]} 23. h4 {[%clk 0:02:11]}  Nb6 {[%clk 0:01:37]} 24. Kg2 {[%clk 0:02:01]}  Kf8 {[%clk 0:01:36]} 25. N1d2 {[%clk 0:01:55]}  Rb5 {[%clk 0:01:35]} 26. Nf1 {[%clk 0:01:54]}  Na8 {[%clk 0:01:36]} 27. Ne3 {[%clk 0:01:32]}  Ke8 {[%clk 0:01:34]} 28. Ng5 {[%clk 0:01:31]}  Nc7 {[%clk 0:01:31]} 29. f4 {[%clk 0:01:30]}  f6 {[%clk 0:01:22]} 30. Nh3 {[%clk 0:01:26]}  Kf7 {[%clk 0:01:22]} 31. Ng4 {[%clk 0:01:24]}  Rb3 {[%clk 0:01:17]} 32. Ng1 {[%clk 0:01:22]}  Nb5 {[%clk 0:01:08]} 33. exf6 {[%clk 0:01:13]}  gxf6 {[%clk 0:01:07]} 34. Nh6+ {[%clk 0:01:11]}  Kg7 {[%clk 0:00:53]} 35. Rxe6 {[%clk 0:01:09]}  Bxa3 {[%clk 0:00:49]} 36. bxa3 {[%clk 0:01:03]}  Kxh6 {[%clk 0:00:49]} 37. Re7 {[%clk 0:00:42]}  Nxc3 {[%clk 0:00:37]} 38. Nf3 {[%clk 0:00:37]}  Ne4 {[%clk 0:00:38]} 39. Re2 {[%clk 0:00:31]}  Rb2 {[%clk 0:00:34]} 40. Rxb2 {[%clk 0:00:25]}  Rxb2+ {[%clk 0:00:35]} 41. Kh3 {[%clk 0:00:25]}  c3 {[%clk 0:00:35]} 42. Ng5 {[%clk 0:00:23]}  fxg5 {[%clk 0:00:23]} 43. hxg5+ {[%clk 0:00:21]}  Nxg5+ {[%clk 0:00:23]} 44. fxg5+ {[%clk 0:00:20]}  Kxg5 {[%clk 0:00:22]} 45. Re5+ {[%clk 0:00:21]}  Kf6 {[%clk 0:00:23]} 46. Rxd5 {[%clk 0:00:21]}  Rb3 {[%clk 0:00:21]} 47. Ra5 {[%clk 0:00:19]}  Rxa3 {[%clk 0:00:21]} 48. Rxa7 {[%clk 0:00:19]}  Ke6 {[%clk 0:00:18]} 49. Ra5 {[%clk 0:00:17]}  c2 {[%clk 0:00:13]} 50. Rc5 {[%clk 0:00:17]}  Ra2 {[%clk 0:00:14]} 51. Kg4 {[%clk 0:00:15]}  a3 {[%clk 0:00:14]} 52. Kf4 {[%clk 0:00:12]}  Rb2 {[%clk 0:00:15]} 53. Ke3 {[%clk 0:00:08]}  a2 {[%clk 0:00:15]} 0-1


[Site "https://www.chess.com"]